{"text_format":"3","workbook":"xlsx","n_sheets":1,"sheets":["CUSTOS DE REMODELAÇÃO"],"not_rendered":{"images":2,"defined_names":4},"read":"whole","date_system":"1900"}

{"sheet":"CUSTOS DE REMODELAÇÃO","index":0,"n_rows":28,"n_cols":8,"rows_kept":28,"merged":[[25,1,25,5],[26,1,26,5],[27,1,27,5]]}
[null,"FOLHA DE CÁLCULO DOS CUSTOS DE REMODELAÇÃO DA COZINHA"]
[]
[null,"Categoria","Itens","Quantidade","Custo Estimado","Custo Real","Custo Estimado Total","Custo Real Total"]
[null,"Armários","Armários inferiores: Modular-Padrão (quantidade em metros lineares)",25,{"v":5,"d":"5.00 €"},null,{"$f":"Dados[[#This Row],[Quantidade]]*Dados[[#This Row],[Custo Estimado]]","v":{"v":125,"d":"125 €"}},{"$f":"Dados[[#This Row],[Quantidade]]*Dados[[#This Row],[Custo Real]]","v":{"v":0,"d":"0 €"}}]
[null,"Armários","Armários superiores: Modular-Padrão (quantidade em metros lineares)",25,{"v":3.5,"d":"3.50 €"},null,{"$f":"Dados[[#This Row],[Quantidade]]*Dados[[#This Row],[Custo Estimado]]","v":{"v":87.5,"d":"88 €"}},{"$f":"Dados[[#This Row],[Quantidade]]*Dados[[#This Row],[Custo Real]]","v":{"v":0,"d":"0 €"}}]
[null,"Eletrodomésticos de Limpeza","Máquina de lavar-loiça: Padrão",1,{"v":250,"d":"250.00 €"},null,{"$f":"Dados[[#This Row],[Quantidade]]*Dados[[#This Row],[Custo Estimado]]","v":{"v":250,"d":"250 €"}},{"$f":"Dados[[#This Row],[Quantidade]]*Dados[[#This Row],[Custo Real]]","v":{"v":0,"d":"0 €"}}]
[null,"Eletrodomésticos de Limpeza","Triturador de Resíduos: Padrão",1,{"v":175,"d":"175.00 €"},null,{"$f":"Dados[[#This Row],[Quantidade]]*Dados[[#This Row],[Custo Estimado]]","v":{"v":175,"d":"175 €"}},{"$f":"Dados[[#This Row],[Quantidade]]*Dados[[#This Row],[Custo Real]]","v":{"v":0,"d":"0 €"}}]
[null,"Eletrodomésticos para Cozinhar","Fogão: Embutido Padrão",1,{"v":375,"d":"375.00 €"},null,{"$f":"Dados[[#This Row],[Quantidade]]*Dados[[#This Row],[Custo Estimado]]","v":{"v":375,"d":"375 €"}},{"$f":"Dados[[#This Row],[Quantidade]]*Dados[[#This Row],[Custo Real]]","v":{"v":0,"d":"0 €"}}]
[null,"Eletrodomésticos para Cozinhar","Micro-ondas: Padrão",1,{"v":300,"d":"300.00 €"},null,{"$f":"Dados[[#This Row],[Quantidade]]*Dados[[#This Row],[Custo Estimado]]","v":{"v":300,"d":"300 €"}},{"$f":"Dados[[#This Row],[Quantidade]]*Dados[[#This Row],[Custo Real]]","v":{"v":0,"d":"0 €"}}]
[null,"Balcões","Superfície sólida (quantidade em metro lineares)",23,{"v":10,"d":"10.00 €"},null,{"$f":"Dados[[#This Row],[Quantidade]]*Dados[[#This Row],[Custo Estimado]]","v":{"v":230,"d":"230 €"}},{"$f":"Dados[[#This Row],[Quantidade]]*Dados[[#This Row],[Custo Real]]","v":{"v":0,"d":"0 €"}}]
[null,"Portas","Interiores: Madeira Maciça Laminada",1,{"v":65,"d":"65.00 €"},null,{"$f":"Dados[[#This Row],[Quantidade]]*Dados[[#This Row],[Custo Estimado]]","v":{"v":65,"d":"65 €"}},{"$f":"Dados[[#This Row],[Quantidade]]*Dados[[#This Row],[Custo Real]]","v":{"v":0,"d":"0 €"}}]
[null,"Extras","Extras: Água Quente Instantânea Padrão",1,{"v":120,"d":"120.00 €"},null,{"$f":"Dados[[#This Row],[Quantidade]]*Dados[[#This Row],[Custo Estimado]]","v":{"v":120,"d":"120 €"}},{"$f":"Dados[[#This Row],[Quantidade]]*Dados[[#This Row],[Custo Real]]","v":{"v":0,"d":"0 €"}}]
[null,"Extras","Extras: Dispensador de Sabão Líquido",1,{"v":40,"d":"40.00 €"},null,{"$f":"Dados[[#This Row],[Quantidade]]*Dados[[#This Row],[Custo Estimado]]","v":{"v":40,"d":"40 €"}},{"$f":"Dados[[#This Row],[Quantidade]]*Dados[[#This Row],[Custo Real]]","v":{"v":0,"d":"0 €"}}]
[null,"Torneiras","Torneira: Misturadora, Padrão",1,{"v":130,"d":"130.00 €"},null,{"$f":"Dados[[#This Row],[Quantidade]]*Dados[[#This Row],[Custo Estimado]]","v":{"v":130,"d":"130 €"}},{"$f":"Dados[[#This Row],[Quantidade]]*Dados[[#This Row],[Custo Real]]","v":{"v":0,"d":"0 €"}}]
[null,"Pavimento","Laminado (quantidade em metros quadrados)",165,{"v":3.5,"d":"3.50 €"},null,{"$f":"Dados[[#This Row],[Quantidade]]*Dados[[#This Row],[Custo Estimado]]","v":{"v":577.5,"d":"578 €"}},{"$f":"Dados[[#This Row],[Quantidade]]*Dados[[#This Row],[Custo Real]]","v":{"v":0,"d":"0 €"}}]
[null,"Eletrodomésticos para a Roupa","Máquina de Lavar-roupa: Padrão",1,{"v":500,"d":"500.00 €"},null,{"$f":"Dados[[#This Row],[Quantidade]]*Dados[[#This Row],[Custo Estimado]]","v":{"v":500,"d":"500 €"}},{"$f":"Dados[[#This Row],[Quantidade]]*Dados[[#This Row],[Custo Real]]","v":{"v":0,"d":"0 €"}}]
[null,"Eletrodomésticos para a Roupa","Máquina de Secar-roupa: Padrão",1,{"v":375,"d":"375.00 €"},null,{"$f":"Dados[[#This Row],[Quantidade]]*Dados[[#This Row],[Custo Estimado]]","v":{"v":375,"d":"375 €"}},{"$f":"Dados[[#This Row],[Quantidade]]*Dados[[#This Row],[Custo Real]]","v":{"v":0,"d":"0 €"}}]
[null,"Iluminação","Iluminação: Embutida",4,{"v":35,"d":"35.00 €"},null,{"$f":"Dados[[#This Row],[Quantidade]]*Dados[[#This Row],[Custo Estimado]]","v":{"v":140,"d":"140 €"}},{"$f":"Dados[[#This Row],[Quantidade]]*Dados[[#This Row],[Custo Real]]","v":{"v":0,"d":"0 €"}}]
[null,"Frigoríficos","Frigorifico: Independente, Premium",1,{"v":1200,"d":"1,200.00 €"},null,{"$f":"Dados[[#This Row],[Quantidade]]*Dados[[#This Row],[Custo Estimado]]","v":{"v":1200,"d":"1,200 €"}},{"$f":"Dados[[#This Row],[Quantidade]]*Dados[[#This Row],[Custo Real]]","v":{"v":0,"d":"0 €"}}]
[null,"Lava-loiças","Duas cubas de Aço Inoxidável Premium",1,{"v":125,"d":"125.00 €"},null,{"$f":"Dados[[#This Row],[Quantidade]]*Dados[[#This Row],[Custo Estimado]]","v":{"v":125,"d":"125 €"}},{"$f":"Dados[[#This Row],[Quantidade]]*Dados[[#This Row],[Custo Real]]","v":{"v":0,"d":"0 €"}}]
[null,"Ventilação","Unidade coberta: Tubagem Padrão",1,{"v":180,"d":"180.00 €"},null,{"$f":"Dados[[#This Row],[Quantidade]]*Dados[[#This Row],[Custo Estimado]]","v":{"v":180,"d":"180 €"}},{"$f":"Dados[[#This Row],[Quantidade]]*Dados[[#This Row],[Custo Real]]","v":{"v":0,"d":"0 €"}}]
[null,"Paredes","Painéis (quantidade em metros quadrados)",70,{"v":2,"d":"2.00 €"},null,{"$f":"Dados[[#This Row],[Quantidade]]*Dados[[#This Row],[Custo Estimado]]","v":{"v":140,"d":"140 €"}},{"$f":"Dados[[#This Row],[Quantidade]]*Dados[[#This Row],[Custo Real]]","v":{"v":0,"d":"0 €"}}]
[null,"Janelas","Deslizantes",2,{"v":120,"d":"120.00 €"},null,{"$f":"Dados[[#This Row],[Quantidade]]*Dados[[#This Row],[Custo Estimado]]","v":{"v":240,"d":"240 €"}},{"$f":"Dados[[#This Row],[Quantidade]]*Dados[[#This Row],[Custo Real]]","v":{"v":0,"d":"0 €"}}]
[null,"Outros",{"$nulls":4},{"$f":"Dados[[#This Row],[Quantidade]]*Dados[[#This Row],[Custo Estimado]]","v":{"v":0,"d":"0 €"}},{"$f":"Dados[[#This Row],[Quantidade]]*Dados[[#This Row],[Custo Real]]","v":{"v":0,"d":"0 €"}}]
[null,"Total",null,null,{"$f":"SUBTOTAL(109,Dados[Custo Estimado])","v":{"v":4014,"d":"4,014.00 €"}},{"$f":"SUBTOTAL(109,Dados[Custo Real])","v":{"v":0,"d":"0.00 €"}},{"$f":"SUBTOTAL(109,Dados[Custo Estimado Total])","v":{"v":5375,"d":"5,375.00 €"}},{"$f":"SUBTOTAL(109,Dados[Custo Real Total])","v":{"v":0,"d":"0.00 €"}}]
[null,"Subtotal",{"$nulls":4},{"$f":"SUBTOTAL(109,Dados[Custo Estimado Total])","v":{"v":5375,"d":"5,375.00 €"}},{"$f":"SUBTOTAL(109,Dados[Custo Real Total])","v":{"v":0,"d":"0.00 €"}}]
[null,"Custos Inesperados – Mais 30%",{"$nulls":4},{"$f":"G26*0.3","v":{"v":1612.5,"d":"1,612.50 €"}},{"$f":"H26*0.3","v":{"v":0,"d":"0.00 €"}}]
[null,"Total",{"$nulls":4},{"$f":"SUM(G26:G27)","v":{"v":6987.5,"d":"6,987.50 €"}},{"$f":"SUM(H26:H27)","v":{"v":0,"d":"0.00 €"}}]